bitfinex-derivatives/quotes_ETHF0:USTF0_20260128
["timestamp","ask_amount","ask_price","bid_price","bid_amount"]
[1769622643547,1.27428629,3023.1,3021.1,0.16572]
[1769622644449,1.27428629,3023.1,3021.1,0.16981956]
[1769622645044,1.28046738,3022.8,3021.1,0.16981956]
[1769622647451,1.44609738,3022.8,3021.1,0.16981956]
[1769622649044,1.28128332,3022.6,3021.1,0.16981956]
[1769622650539,1.44692332,3022.6,3021.1,0.00409956]
[1769622650745,1.28057024,3022.4,3021.1,0.00409956]
[1769622651957,1.28057024,3022.4,3021.1,0.16981956]
[1769622652448,1.27570273,3022.9,3021.3,0.16571]
[1769622653747,1.27570273,3022.9,3021.5,0.1657]
[1769622654045,1.27570273,3022.9,3021.9,0.16567]
[1769622654446,40.96559,3023.5,3021.9,0.16567]
[1769622654654,1.27566539,3023.4,3021.9,0.16567]
[1769622655449,1.27566539,3023.4,3021.3,1.57858995]
[1769622655643,1.27566539,3023.4,3021.7,5.256]
[1769622655844,1.27566539,3023.4,3021.9,0.16567]
[1769622659153,1.44126539,3023.4,3021.7,5.256]
[1769622659354,1.27929942,3023.2,3021.7,3.313]
[1769622660248,1.44490942,3023.2,3021.7,3.313]
[1769622661246,1.27929942,3023.2,3021.7,3.313]
[1769622661754,1.27929942,3023.2,3021.6,0.16569]
[1769622661955,1.26979013,3022.9,3021.1,0.00409956]
[1769622662560,1.43541013,3022.9,3021.1,0.00409956]
[1769622662858,1.27082837,3022.7,3021.1,0.00409956]
[1769622663253,1.27082837,3022.5,3021.1,0.00409956]
[1769622664659,1.27410747,3022.3,3021.1,0.00409956]
[1769622669564,1.27936178,3022.1,3020.4,1.93682956]
[1769622670070,1.27710428,3021.9,3020.4,1.93682956]
[1769622670454,45.82,3022.4,3020.4,1.93682956]
[1769622670455,1.27710428,3021.7,3020.4,1.93682956]
[1769622670652,1.28072738,3021.7,3020.4,1.9405166]
[1769622670858,0.85846091,3021.4,3019.5,0.3981769]
[1769622671063,0.16572,3021.1,3019.2,7.18049795]
[1769622671269,0.85846091,3021.0,3019.2,0.2323669]
[1769622671761,0.85846091,3020.5,3019.2,0.0027354]
[1769622674366,0.85846091,3020.5,3019.2,0.23925697]
[1769622675363,3.314,3021.4,3019.2,0.23925697]
[1769622675364,0.85846091,3020.9,3019.6,0.2223555]
[1769622675863,0.85846091,3020.9,3019.6,0.1658]
[1769622676060,0.85846091,3020.9,3019.8,0.21962884]
[1769622676263,0.85846091,3021.6,3019.9,0.21962884]
[1769622676662,0.85846091,3021.4,3020.0,0.16578]
[1769622676872,0.85846091,3021.4,3020.1,0.21233789]
[1769622677364,0.85846091,3021.4,3020.0,0.16578]
[1769622677963,0.85846091,3021.4,3019.5,0.22181609]
[1769622678369,0.85846091,3021.4,3019.7,0.22181609]
[1769622678668,0.85846091,3021.4,3019.8,0.22181609]
[1769622679063,0.85846091,3021.4,3019.9,0.21458318]
[1769622679265,0.85846091,3021.4,3020.2,0.21458318]
[1769622680169,0.85846091,3021.4,3020.3,0.20617643]
[1769622680364,0.85846091,3021.4,3020.3,0.37193643]
[1769622680669,0.86208401,3021.7,3020.5,0.20617643]
[1769622681964,0.86208401,3021.7,3020.6,0.19261873]
[1769622682869,0.85846091,3022.0,3020.9,0.35136907]
[1769622683066,0.85846091,3022.0,3020.9,0.16573]
[1769622683661,0.86209584,3022.0,3020.9,0.3448341]
[1769622683866,0.86209584,3022.0,3021.0,0.1791041]
[1769622684372,0.86209584,3022.0,3021.1,0.3448241]
[1769622684569,0.85846091,3022.3,3021.2,0.1791041]
[1769622685666,0.86152563,3022.3,3021.2,0.1791041]
[1769622686168,0.86152563,3022.3,3020.5,0.32436042]
[1769622686765,0.86152563,3022.3,3020.6,0.15193001]
[1769622686967,0.86152563,3022.3,3020.5,0.16575]
[1769622687668,0.86152563,3022.3,3020.5,0.3052097]
[1769622687876,0.86152563,3022.3,3020.7,0.1394597]
[1769622688673,0.70329865,3022.1,3020.1,0.29872961]
[1769622688862,0.70329865,3022.1,3020.2,0.29871961]
[1769622689261,0.70329865,3022.1,3020.2,0.16577]
[1769622689669,0.70329865,3021.9,3020.2,0.16577]
[1769622690061,0.70329865,3021.7,3019.9,0.13294961]
[1769622690258,0.86898865,3021.7,3019.8,0.16579]
[1769622690462,0.86898865,3021.7,3020.0,0.11622275]
[1769622690667,0.00306472,3022.3,3019.4,5.258]
[1769622690668,0.70329865,3022.2,3020.7,0.27560443]
[1769622690975,0.70329865,3022.2,3020.8,0.10986443]
[1769622691166,0.70329865,3022.2,3020.7,0.16574]
[1769622692067,0.70329865,3022.2,3020.7,0.28702498]
[1769622692272,0.70329865,3022.2,3020.8,0.12128498]
[1769622692474,0.70329865,3022.2,3020.9,0.12128498]
[1769622693073,0.70329865,3022.2,3021.0,0.11496623]
[1769622693264,0.70329865,3022.2,3021.0,0.28069623]
[1769622693466,0.70329865,3022.2,3021.1,0.16572]
[1769622693774,0.70329865,3022.2,3021.1,0.28068623]
[1769622693971,0.70329865,3022.2,3021.2,0.18297977]
[1769622694278,0.00306472,3022.3,3021.4,0.34867977]
[1769622694576,7.45881913,3024.0,3021.4,0.34867977]
[1769622694577,0.16559,3023.5,3021.7,0.16569]
[1769622694770,3.52459192,3023.4,3021.7,0.16569]
[1769622694972,0.16559,3023.5,3021.7,0.16569]
[1769622694973,44.32459192,3023.3,3021.7,0.16569]
[1769622695171,3.52459192,3023.2,3021.7,0.16569]
[1769622695374,40.8,3023.3,3021.7,0.16569]
[1769622695676,3.5236173,3023.2,3021.7,0.83440687]
[1769622695974,40.80278691,3023.3,3021.7,0.83440687]
[1769622696572,0.70329865,3023.2,3021.7,0.83440687]
[1769622699279,0.70329865,3023.2,3021.9,0.66871687]
[1769622699477,0.70329865,3023.2,3022.1,0.66871687]
[1769622701280,0.70329865,3023.2,3022.2,0.16566]
[1769622702172,0.70329865,3023.2,3022.1,0.66871687]
[1769622702573,0.70329865,3023.2,3021.8,0.66871687]
[1769622703275,0.00278691,3023.3,3021.8,0.66871687]
[1769622703579,0.70329865,3023.7,3022.6,0.16564]
[1769622703779,0.70329865,3023.7,3022.7,0.66871687]
[1769622703973,0.70329865,3024.3,3022.9,0.66871687]
[1769622704683,0.70654842,3024.3,3022.9,0.66871687]
[1769622707079,0.70654842,3024.3,3022.8,0.16562]
[1769622707472,0.70654842,3024.3,3022.8,0.83433687]
[1769622707672,0.70654842,3024.3,3022.8,0.16562]
[1769622707877,0.70654842,3024.3,3022.8,0.83433687]
[1769622709482,0.70329865,3024.0,3022.2,0.66871687]
[1769622709680,0.86885865,3024.0,3022.2,0.66871687]
[1769622710680,0.86885865,3024.0,3022.2,0.83437687]
[1769622713989,0.70329865,3023.8,3022.2,0.66871687]
[1769622714690,0.70329865,3023.8,3022.4,0.83436687]
[1769622715186,0.58948654,3024.2,3022.6,0.56224024]
[1769622715393,0.58948654,3024.2,3022.9,0.56224024]
[1769622719499,0.58948654,3024.2,3022.8,0.16563]
[1769622719692,0.58948654,3024.2,3022.6,0.56224024]
[1769622719895,0.58948654,3024.0,3022.3,0.56224024]
[1769622720500,0.58948654,3024.0,3022.3,0.72789024]
[1769622720691,0.58948654,3024.0,3022.4,0.56224024]
[1769622721299,0.58948654,3024.0,3022.3,0.16565]
[1769622721500,0.58948654,3023.8,3022.3,0.72789024]
[1769622721688,0.58948654,3023.8,3022.4,0.56224024]
[1769622721888,0.58948654,3023.8,3022.0,0.56224024]
[1769622722291,0.58948654,3023.8,3022.1,0.56224024]
[1769622722499,0.58948654,3023.8,3022.2,0.56224024]
[1769622731307,0.58948654,3023.7,3022.2,0.56224024]
[1769622733212,0.58948654,3024.2,3023.1,0.55212982]
[1769622733516,2.0,3024.4,3023.3,0.55212982]
[1769622733716,2.0,3024.4,3023.2,0.1656]
[1769622733717,1.41799182,3024.4,3023.6,0.50467584]
[1769622733913,0.91331598,3024.4,3023.6,0.16558]
[1769622734117,0.57910598,3024.4,3023.8,0.16557]
[1769622734317,0.58948654,3025.6,3024.2,0.16555]
[1769622734510,0.59280422,3025.6,3024.2,0.16926323]
[1769622734815,0.75828422,3025.6,3024.2,0.00371323]
[1769622735010,0.58948654,3025.5,3024.2,0.00371323]
[1769622737217,0.58948654,3025.4,3023.6,0.16558]
[1769622738114,0.58948654,3026.6,3024.6,0.16553]
[1769622738310,0.58948654,3026.5,3025.2,0.1655]
[1769622739310,0.59273462,3026.5,3025.2,0.1655]
[1769622739518,0.59273462,3026.5,3024.5,7.45825669]
[1769622739813,0.59273462,3026.5,3024.3,6.04449616]
[1769622740019,0.59273462,3026.5,3024.4,5.28]
[1769622740217,0.59273462,3026.5,3024.4,5.44554]
[1769622740719,0.59273462,3026.5,3024.6,0.16553]
[1769622741216,0.59273462,3026.5,3024.7,5.282]
[1769622741513,0.59273462,3026.5,3023.9,0.16556]
[1769622741714,0.6184282,3026.2,3023.9,0.16556]
[1769622742111,0.6184282,3025.7,3023.9,0.16556]
[1769622742310,0.6184282,3025.7,3023.6,0.00246026]
[1769622745415,0.62563584,3025.5,3023.6,0.00246026]
[1769622746925,0.62563584,3025.5,3023.6,0.0219429]
[1769622748125,0.62563584,3025.5,3023.8,0.0627842]
[1769622748319,0.62563584,3025.5,3023.8,2.0047842]
[1769622748624,0.62563584,3025.5,3023.8,5.3157842]
[1769622749019,0.62563584,3025.5,3023.8,0.0627842]
[1769622749219,0.62563584,3025.5,3023.7,0.16557]
[1769622750619,0.62596424,3026.7,3023.8,0.10657838]
[1769622750825,0.62596424,3027.0,3025.5,1.57930053]
[1769622751019,0.62596424,3027.0,3023.8,9.2771414]
[1769622751020,0.62596424,3027.0,3025.6,5.253]
[1769622751818,0.62920919,3027.0,3025.6,5.253]
[1769622753425,0.62920919,3027.0,3025.7,0.16385809]
[1769622755724,0.62920919,3027.0,3025.5,0.16548]
[1769622756031,0.00324495,3027.0,3025.7,0.27566069]
[1769622756327,0.61806352,3027.7,3025.9,0.27566069]
[1769622757325,0.62051448,3027.7,3026.2,0.29186155]
[1769622758123,0.62051448,3027.7,3026.1,0.16545]
[1769622758325,0.62051448,3027.7,3026.1,0.45594548]
[1769622758526,0.62051448,3027.7,3026.1,0.16545]
[1769622758727,0.62051448,3027.7,3025.9,0.0032337]
[1769622759330,0.62051448,3027.7,3025.9,0.31245866]
[1769622761230,0.62051448,3027.7,3025.9,0.0032337]
[1769622762233,0.62051448,3027.7,3025.9,0.36970067]
[1769622762428,1.87253119,3028.4,3027.0,0.52940601]
[1769622762732,0.61806352,3028.3,3027.1,5.6334667]
[1769622762932,0.61806352,3028.3,3027.1,5.25]
[1769622763424,0.62228743,3028.3,3027.1,5.25]
[1769622763629,0.62228743,3028.3,3027.1,5.65383689]
[1769622764333,0.62228743,3028.3,3027.1,0.40383689]
[1769622764932,0.62228743,3028.3,3027.0,0.16539]
[1769622765326,0.62228743,3028.3,3025.9,5.88218986]
[1769622765327,0.62228743,3028.3,3026.5,0.37636517]
[1769622766027,0.62228743,3028.3,3026.7,0.55850819]
[1769622766221,0.62228743,3028.3,3025.9,0.0032337]
[1769622766222,2.19691094,3028.3,3025.9,0.0032337]
[1769622766425,0.62684751,3027.7,3025.9,0.0032337]
[1769622766729,0.6238532,3027.6,3025.9,0.0032337]
[1769622768431,0.62355471,3027.4,3025.9,0.0032337]
[1769622769330,0.62355471,3027.4,3025.3,0.67378338]
[1769622769734,0.62355471,3027.4,3025.4,0.5247173]
[1769622770436,0.62355471,3027.4,3025.5,0.5247173]
[1769622771033,0.62355471,3027.4,3025.4,0.1686115]
[1769622771740,0.61806352,3027.1,3025.4,0.0031215]
[1769622772342,0.61806352,3028.2,3026.2,0.16544]
[1769622772637,0.61806352,3028.2,3026.3,0.60801818]
[1769622772834,0.61806352,3028.2,3026.4,0.77344818]
[1769622773342,0.61806352,3028.2,3026.4,0.16543]
[1769622773844,0.61806352,3028.2,3026.0,0.60801818]
[1769622774141,0.61806352,3028.1,3026.0,0.60801818]
[1769622776644,0.00422391,3028.3,3026.0,0.60801818]
[1769622776850,0.89144058,3028.7,3027.4,0.16537]
[1769622777140,0.89144058,3028.7,3027.4,0.83445621]
[1769622777340,0.89144058,3028.7,3027.4,0.16537]
[1769622777649,0.89144058,3028.7,3026.7,0.66908621]
[1769622777830,0.89420924,3028.7,3026.9,0.68389482]
[1769622778231,0.89420924,3028.7,3027.2,0.68389482]
[1769622778447,0.89420924,3028.7,3027.6,0.16536]
[1769622778741,0.89420924,3028.7,3027.6,0.00276128]
[1769622779744,0.00276866,3028.7,3027.6,0.71274992]
[1769622779940,0.00276866,3028.7,3027.6,0.87810992]
[1769622780847,0.00276866,3028.7,3027.8,0.71276789]
[1769622781037,0.00276866,3028.7,3027.6,0.88088917]
[1769622781433,0.89144058,3029.2,3027.8,0.71276789]
[1769622781648,0.89144058,3029.8,3028.4,0.72635]
[1769622781845,0.89144058,3029.8,3028.4,0.16532]
[1769622782151,0.89144058,3029.8,3027.8,0.72635]
[1769622782345,0.8945033,3029.8,3027.8,6.03535]
[1769622782645,0.8945033,3029.8,3027.8,3.308]
[1769622782847,0.8945033,3029.8,3027.6,0.00276128]
[1769622782848,0.89144058,3029.6,3027.6,0.00276128]
[1769622783443,0.89144058,3029.6,3027.6,0.71801212]
[1769622783945,0.89144058,3029.6,3027.8,0.89368434]
[1769622784739,0.89144058,3029.6,3027.6,0.00276128]
[1769622785550,0.89144058,3029.6,3027.6,0.70653599]
[1769622786849,0.89144058,3029.6,3027.6,0.87189599]
[1769622787147,0.89144058,3029.6,3027.6,0.70653599]
[1769622787451,0.89144058,3029.6,3027.6,0.74248123]
[1769622788051,0.89144058,3029.6,3027.8,0.75199455]
[1769622788748,0.89144058,3029.6,3027.7,0.16536]
[1769622789250,0.89144058,3029.6,3027.6,0.00276128]
[1769622789452,1.05670058,3029.6,3027.6,0.78024778]
[1769622789852,1.05670058,3029.6,3027.6,0.00276128]
[1769622790356,0.89144058,3029.5,3027.6,0.00276128]
[1769622790846,0.89144058,3029.5,3028.0,0.16534]
[1769622791050,0.00306272,3029.8,3028.4,0.78751908]
[1769622791353,0.16521,3030.4,3027.6,0.00276128]
[1769622791354,0.89144058,3030.3,3028.9,0.78751908]
[1769622791555,0.89144058,3030.3,3028.9,0.95280908]
[1769622792550,0.89418206,3030.3,3028.9,0.95280908]
[1769622792748,0.00274148,3030.3,3029.3,0.81587485]
[1769622793451,0.00274148,3030.3,3029.2,0.16527]
[1769622793452,0.89144058,3030.2,3029.2,0.16527]
[1769622793652,0.00274148,3030.3,3028.9,0.81587485]
[1769622793863,0.00274148,3030.3,3029.1,0.82072625]
[1769622794158,0.00274148,3030.3,3029.1,0.98600625]
[1769622794657,0.16518,3031.0,3028.8,3.307]
[1769622794658,0.89144058,3031.0,3029.3,0.82072625]
[1769622795156,0.89144058,3031.0,3029.5,0.82072625]
[1769622795360,0.89144058,3031.0,3029.2,0.82072625]
[1769622795552,0.89144058,3031.0,3029.4,0.82072625]
[1769622795854,0.89478434,3031.0,3029.4,0.82072625]
[1769622796353,1.05665058,3030.4,3028.3,0.82072625]
[1769622796752,0.89144058,3030.4,3028.5,0.81467343]
[1769622796956,0.89144058,3030.4,3028.9,0.81467343]
[1769622797160,0.89144058,3030.4,3028.1,5.87895616]
[1769622797456,0.89144058,3030.2,3028.2,0.81467343]
[1769622797955,0.89144058,3030.2,3028.8,0.98602625]
[1769622798150,0.89144058,3030.2,3028.8,0.82072625]
[1769622798458,0.89144058,3030.2,3029.0,0.16529]
[1769622799152,0.89144058,3030.2,3028.5,0.82072625]
[1769622799660,0.89144058,3030.2,3028.4,0.16532]
[1769622799859,0.89144058,3030.2,3028.4,0.98604625]
[1769622800056,0.89144058,3030.2,3028.4,0.82072625]
[1769622801150,0.89144058,3030.2,3028.6,0.16531]
[1769622801861,0.89144058,3030.2,3028.1,0.82072625]
[1769622802253,1.05667058,3030.2,3028.1,0.82072625]
[1769622802451,1.05667058,3030.2,3028.1,0.98605625]
[1769622802653,0.89144058,3030.0,3028.1,0.82072625]
[1769622802859,0.89144058,3030.0,3028.5,0.98603625]
[1769622803656,0.89144058,3030.0,3028.5,0.16531]
[1769622804058,0.89144058,3030.0,3028.1,0.82072625]
[1769622804556,0.89144058,3029.6,3027.9,0.16534]
[1769622804757,0.89144058,3029.4,3027.7,0.82072625]
[1769622804955,0.89144058,3029.4,3027.7,0.98608625]
[1769622805259,0.89144058,3029.4,3027.9,1.13282258]
[1769622806064,0.89144058,3029.4,3028.0,0.16534]
[1769622806565,0.89144058,3029.4,3028.3,1.14415489]
[1769622806958,0.89144058,3029.4,3027.7,0.99855812]
[1769622807663,0.89144058,3029.4,3027.8,0.16535]
[1769622807866,0.89144058,3029.4,3027.9,1.20226026]
[1769622808361,0.89144058,3029.4,3027.9,1.03691026]
[1769622808560,0.89144058,3029.4,3028.1,0.16534]
[1769622809360,0.89144058,3029.4,3027.6,1.03967154]
[1769622809952,1.05671058,3029.4,3027.6,0.00276128]
[1769622810758,1.05671058,3029.4,3027.7,1.20227026]
[1769622811456,0.89144058,3029.4,3028.0,1.03691026]
[1769622811852,0.89144058,3029.4,3027.9,0.16535]
[1769622812650,0.89144058,3029.4,3027.6,1.03967154]
[1769622813050,1.01374307,3028.9,3027.6,0.00276128]
[1769622813263,1.17904307,3028.9,3027.6,0.00276128]
[1769622813466,41.97904307,3028.9,3027.6,0.00276128]
[1769622813656,1.01374307,3028.8,3027.6,0.00276128]
[1769622813958,1.01732646,3028.8,3027.6,0.00276128]
[1769622816666,1.01374307,3028.5,3026.5,1.20234026]
[1769622817468,1.01374307,3028.3,3026.6,1.20233026]
[1769622817656,1.01374307,3028.3,3026.8,1.03691026]
[1769622817861,1.01374307,3028.3,3027.1,1.03691026]
[1769622818061,1.01374307,3028.7,3027.5,1.03691026]
[1769622818260,1.01374307,3028.7,3027.0,1.03691026]
[1769622819167,1.17906307,3028.5,3026.6,0.00281396]
[1769622819768,1.17907307,3028.3,3026.6,0.00281396]
[1769622820564,1.17907307,3028.3,3026.6,1.03972422]
[1769622820764,1.01374307,3028.3,3026.9,1.03691026]
[1769622821268,1.01374307,3028.3,3027.0,1.20231026]
[1769622822766,1.01374307,3028.3,3027.2,1.03691026]
[1769622822968,1.01374307,3028.7,3027.2,1.20230026]
[1769622824178,0.00358339,3028.8,3027.5,1.03691026]
[1769622824472,1.01732646,3028.8,3027.5,1.03691026]
[1769622824971,0.00358339,3028.8,3027.8,1.03691026]
[1769622825764,1.01732646,3028.8,3027.8,1.03691026]
[1769622826272,1.01732646,3028.8,3027.7,0.16536]
[1769622826468,1.01732646,3028.8,3027.2,1.03691026]
[1769622827170,1.01732646,3028.8,3027.1,0.16539]
[1769622827761,1.18262646,3028.8,3027.1,0.16539]
[1769622828168,1.18262646,3028.8,3027.1,1.20230026]
[1769622832080,1.18262646,3028.8,3026.7,1.57370881]
[1769622832081,1.18262646,3028.8,3027.3,1.03691026]
[1769622833669,1.18262646,3028.8,3027.2,0.16539]
[1769622835674,1.18262646,3028.8,3027.2,1.3776674]
[1769622835876,1.01732646,3028.8,3027.4,1.3776474]
[1769622837278,1.01732646,3028.8,3027.6,1.2122774]
[1769622837782,1.01732646,3028.8,3027.6,1.3776374]
[1769622838575,1.01732646,3028.8,3027.3,1.57370881]
[1769622838576,0.00358339,3028.8,3027.8,1.3776274]
[1769622839082,1.22018154,3028.8,3027.8,1.3776274]
[1769622840578,1.22018154,3028.8,3027.4,1.2122774]
[1769622840782,1.22018154,3028.8,3027.2,6.04433616]
[1769622840978,1.38548154,3028.8,3027.2,1.3776574]
[1769622841683,1.38548154,3028.8,3027.2,0.16538]
[1769622841890,1.22018154,3028.8,3027.4,1.2122774]
[1769622842379,1.21659815,3029.1,3028.0,1.2122774]
[1769622843004,1.21659815,3029.1,3027.9,0.16535]
[1769622843280,1.21913421,3029.1,3027.9,0.16535]
[1769622844488,1.21913421,3029.1,3027.4,1.2122774]
[1769622844681,1.21913421,3029.1,3027.4,1.3776474]
[1769622845782,1.21913421,3029.1,3027.1,5.87895616]
[1769622845987,1.21913421,3029.1,3026.9,3.307]
[1769622845988,1.21659815,3028.7,3026.9,3.307]
[1769622846181,1.21659815,3028.5,3026.9,3.307]
[1769622846675,1.21659815,3028.5,3027.0,1.3776674]
[1769622846880,1.21659815,3028.5,3027.3,1.3776574]
[1769622848788,1.21659815,3028.5,3027.0,1.2122774]
[1769622849288,1.21659815,3028.5,3026.7,9.23964356]
[1769622849677,1.21659815,3028.5,3026.8,1.2122774]
[1769622849878,1.21659815,3028.3,3026.8,1.2122774]
[1769622850787,1.21659815,3028.3,3026.7,2.14841]
[1769622851689,1.21659815,3028.3,3026.6,0.00281396]
[1769622851690,1.21659815,3028.1,3026.6,0.00281396]
[1769622851991,3.50689504,3028.2,3026.6,0.00281396]
[1769622851992,1.21659815,3027.9,3026.6,1.21509136]
[1769622852380,1.21659815,3027.9,3026.6,0.00281396]
[1769622853383,1.21659815,3027.7,3025.9,1.2122774]
[1769622853578,1.38195815,3027.7,3025.9,1.2122774]
[1769622854385,1.38195815,3027.7,3025.9,0.00333953]
[1769622854691,1.21659815,3027.4,3025.9,0.00333953]
[1769622854986,1.21659815,3027.7,3025.9,1.21561693]
[1769622855190,1.21659815,3027.9,3026.7,2.78598621]
[1769622855578,1.21659815,3027.9,3026.7,1.2122774]
[1769622855886,1.57624487,3029.1,3026.8,1.2122774]
[1769622855887,1.21913421,3029.1,3026.8,1.2122774]
[1769622856087,0.00253606,3029.1,3028.1,2.78598621]
[1769622856283,1.21659815,3030.4,3028.8,1.2122774]
[1769622856483,1.21659815,3030.4,3028.2,1.999]
[1769622856484,1.21659815,3031.5,3029.0,1.2122774]
[1769622856683,1.21659815,3031.3,3029.2,1.2122774]
[1769622856890,1.21659815,3031.3,3029.6,1.57370881]
[1769622857089,1.21659815,3031.3,3029.1,7.88295616]
[1769622857286,1.21935979,3031.3,3029.2,1.2122774]
[1769622857485,1.21935979,3031.3,3029.1,2.17339922]
[1769622857486,1.21935979,3031.3,3029.6,1.2122774]
[1769622858088,1.21935979,3031.3,3029.7,1.2122774]
[1769622858685,1.21935979,3031.3,3029.7,3.2232774]
[1769622858891,1.21935979,3031.3,3029.8,1.17184015]
[1769622859092,0.00276164,3031.3,3030.2,1.17184015]
[1769622859492,1.21935979,3031.3,3030.1,0.16523]
[1769622859695,1.21935979,3031.3,3030.2,2.012]
[1769622860192,1.21935979,3031.3,3029.8,3.18384015]
[1769622860394,1.21935979,3031.3,3029.9,2.011]
[1769622860697,1.70799466,3031.6,3030.5,0.1652]
[1769622860995,1.70799466,3031.6,3030.6,6.46163102]
[1769622861297,1.70799466,3031.6,3030.7,3.15563102]
[1769622861494,1.70799466,3031.6,3030.5,0.1652]
[1769622861696,1.70799466,3031.6,3030.9,1.15979609]
[1769622861697,1.7108815,3031.6,3030.9,1.15979609]
[1769622861896,1.7108815,3031.6,3030.5,1.32499609]
[1769622862095,1.7108815,3031.6,3030.6,2.012]
[1769622862399,1.21659815,3032.3,3030.6,2.012]
[1769622862696,1.21659815,3032.3,3030.7,1.15979609]
[1769622863286,1.21965454,3032.3,3030.9,1.04725344]
[1769622863485,0.00305639,3032.3,3031.0,1.04725344]
[1769622863888,2.0,3032.4,3031.0,1.04725344]
[1769622864087,0.92229067,3032.4,3031.2,1.24287933]
[1769622864900,0.92476694,3032.4,3031.2,1.24287933]
[1769622865196,2.26608531,3032.4,3031.3,2.016]
[1769622865501,2.26608531,3032.4,3031.3,2.01949098]
[1769622866195,1.34158508,3032.3,3031.3,0.00349098]
[1769622866500,1.34158508,3032.3,3030.7,0.03450945]
[1769622867004,1.36041662,3033.5,3031.7,1.57370881]
[1769622867296,1.36041662,3033.5,3031.6,1.938]
[1769622867499,1.36041662,3033.5,3031.7,0.00309195]
[1769622867794,1.36078393,3033.9,3032.1,0.00738096]
[1769622867999,1.36474206,3033.9,3032.5,1.57370881]
[1769622868196,1.36474206,3033.9,3032.4,1.938]
[1769622868497,1.36474206,3033.9,3032.1,0.00258684]
[1769622869299,1.35328116,3033.1,3030.2,1.938]
[1769622869502,1.35328116,3032.6,3030.9,1.57370881]
[1769622870096,1.35328116,3032.6,3030.9,1.57652949]
[1769622870502,1.35328116,3032.6,3030.9,0.00282068]
[1769622872197,1.35328116,3032.6,3030.5,3.304]
[1769622872198,1.34433249,3032.2,3030.5,3.304]
[1769622872998,1.34433249,3032.2,3029.7,0.16525]
[1769622873203,1.31482642,3031.0,3029.7,0.00273382]
[1769622873399,1.31869795,3031.0,3029.7,0.00273382]
[1769622874305,1.31547715,3030.9,3029.7,0.16798382]
[1769622876893,1.31547715,3030.9,3029.7,0.00273382]
[1769622879398,1.48066715,3030.9,3028.6,0.16531]
[1769622879599,1.3007591,3030.4,3028.4,1.93171312]
[1769622880395,1.3007591,3030.4,3028.4,1.93561998]
[1769622881002,1.2728405,3030.2,3027.3,1.33158991]
[1769622881904,1.2728405,3030.2,3026.7,4.77641713]
[1769622881905,1.2728405,3030.2,3027.5,1.33158991]
[1769622883607,1.2728405,3030.2,3027.8,1.33158991]
[1769622883916,1.2728405,3030.2,3028.0,1.33158991]
[1769622885498,40.96522,3030.3,3027.4,0.16537]
[1769622885499,1.2728405,3029.8,3027.4,0.16537]
[1769622885704,40.8,3030.3,3027.5,1.33158991]
[1769622885705,1.2728405,3029.5,3027.5,1.33158991]
[1769622885908,1.2728405,3029.3,3027.3,1.33503894]
[1769622886101,1.2728405,3029.3,3027.4,0.16538]
[1769622886308,1.2728405,3029.3,3027.5,1.33158991]
[1769622886507,1.2728405,3029.1,3027.5,1.33158991]
[1769622887305,1.2728405,3029.1,3027.5,1.49695991]
[1769622888817,1.4381405,3028.9,3027.3,0.00344903]
[1769622891712,1.2728405,3029.8,3027.8,1.33158991]
[1769622891909,1.2728405,3029.8,3028.1,1.49692991]
[1769622892109,1.2728405,3029.8,3028.2,1.49691991]
[1769622892817,1.2728405,3029.8,3028.0,3.306]
[1769622892818,1.2728405,3029.8,3028.5,0.16532]
[1769622893012,1.2728405,3029.8,3028.6,0.16531]
[1769622893211,1.2728405,3030.6,3028.6,1.49689991]
[1769622894309,1.2728405,3030.6,3028.1,1.33158991]
[1769622894516,1.2728405,3030.4,3028.1,1.33158991]
[1769622895214,1.2728405,3030.4,3028.1,1.49692991]
[1769622895517,1.2728405,3030.4,3028.1,1.33158991]
[1769622896215,1.2728405,3030.4,3028.2,4.90586396]
[1769622896915,1.2728405,3030.4,3028.2,1.59986396]
[1769622897114,1.2728405,3030.4,3028.2,4.90586396]
[1769622897416,1.2728405,3030.4,3028.3,1.59986396]
[1769622898210,1.2728405,3030.4,3028.2,3.306]
[1769622898211,1.2728405,3030.4,3028.4,1.76518396]
[1769622899908,40.8,3030.3,3028.4,1.76518396]
[1769622900115,1.68996103,3030.2,3028.4,1.76518396]
[1769622900316,1.68996103,3030.2,3028.6,1.59986396]
[1769622900516,1.68996103,3030.2,3028.6,1.76517396]
[1769622901714,1.68996103,3030.2,3028.9,1.59986396]
[1769622902308,1.68996103,3030.8,3028.9,1.59986396]
[1769622903215,1.68996103,3030.8,3029.1,1.59986396]
[1769622905516,1.68996103,3030.8,3028.7,1.59986396]
[1769622905820,1.68996103,3030.8,3028.4,3.306]
[1769622906018,1.68996103,3030.8,3028.4,5.07118396]
[1769622906218,1.68996103,3030.8,3028.5,1.59986396]
[1769622906427,1.68996103,3030.6,3028.5,1.59986396]
[1769622906611,1.68996103,3030.4,3028.6,0.16531]
[1769622906813,1.68996103,3030.4,3028.9,1.76515396]
[1769622907015,1.68996103,3030.4,3028.9,0.16529]
[1769622907516,1.68996103,3030.2,3028.9,0.16529]
[1769622908017,1.68996103,3030.2,3028.5,1.59986396]
[1769622908323,1.68996103,3030.0,3028.5,1.59986396]
[1769622908717,1.68996103,3030.0,3028.3,0.16533]
[1769622909019,1.68996103,3029.8,3028.3,0.16533]
[1769622909513,1.68996103,3029.6,3027.8,0.16535]
[1769622909717,1.68996103,3029.4,3027.8,0.16535]
[1769622911723,1.68996103,3029.2,3027.8,0.16535]
[1769622911917,1.68996103,3029.2,3027.3,0.16882903]
[1769622912117,1.68996103,3029.0,3027.3,1.76869299]
[1769622912325,1.68996103,3028.8,3027.3,1.76869299]
[1769622912518,1.69284546,3028.8,3027.3,1.76869299]
[1769622913323,1.69284546,3028.8,3027.4,1.76523396]
[1769622914225,1.69284546,3028.8,3027.6,1.59986396]
[1769622914428,1.69284546,3028.8,3027.6,1.76522396]
[1769622915027,1.69284546,3028.8,3027.3,0.00344903]
[1769622915721,1.69284546,3028.8,3027.3,1.60331299]
[1769622915923,1.69284546,3028.8,3027.4,0.16537]
[1769622916727,1.68996103,3028.5,3027.3,0.00344903]
[1769622916918,1.85528103,3028.5,3026.7,0.16541]
[1769622917125,1.68996103,3028.3,3026.3,7.08829396]
[1769622917521,1.85529103,3028.3,3026.3,0.16543]
[1769622917730,1.68996103,3028.1,3026.3,0.16543]
[1769622917932,1.68996103,3028.1,3026.3,0.16945546]
[1769622921041,1.85530103,3028.1,3026.3,0.00402546]
[1769622922122,1.68996103,3027.9,3026.3,0.00402546]
[1769622922523,1.85531103,3027.9,3026.3,0.00402546]
[1769622922732,1.68996103,3027.7,3026.3,0.00402546]
[1769622928336,1.98108358,3027.5,3025.8,0.16546]
[1769622928738,1.98108358,3027.5,3025.8,2.06743521]
[1769622929131,1.98108358,3027.5,3025.8,2.07065248]
[1769622929840,1.98108358,3027.5,3025.8,0.16867727]